[Event "Titled Tuesday Blitz July 4 Early 2023"]
[White "Gontcharov, Vladislav"]
[Black "Bueno, Alfeu Junior Varela"]
[WhiteFideId "4123492"]
[BlackFideId "2108879"]
[WhiteElo "2572"]
[BlackElo "2437"]
[Result "1-0"]
[Round "7"]
[TimeControl "180+2"]
[Date "2023.07.04"]
[WhiteClock "0:00:17"]
[BlackClock "0:00:00"]
[Board "102"]

1. d4 {[%clk 0:03:00]}  e6 {[%clk 0:03:00]} 2. c4 {[%clk 0:02:59]}  f5 {[%clk 0:03:00]} 3. Nc3 {[%clk 0:02:59]}  Bb4 {[%clk 0:03:00]} 4. Qc2 {[%clk 0:02:53]}  b6 {[%clk 0:03:00]} 5. Nf3 {[%clk 0:02:52]}  Bb7 {[%clk 0:03:00]} 6. e3 {[%clk 0:02:52]}  Nf6 {[%clk 0:03:00]} 7. Bd3 {[%clk 0:02:52]}  O-O {[%clk 0:02:59]} 8. a3 {[%clk 0:02:39]}  Bxc3+ {[%clk 0:02:59]} 9. Qxc3 {[%clk 0:02:39]}  d6 {[%clk 0:02:57]} 10. d5 {[%clk 0:02:19]}  Ne4 {[%clk 0:02:47]} 11. Bxe4 {[%clk 0:02:12]}  fxe4 {[%clk 0:02:47]} 12. Nd4 {[%clk 0:02:12]}  Qf6 {[%clk 0:02:17]} 13. Nxe6 {[%clk 0:01:50]}  Qxf2+ {[%clk 0:02:11]} 14. Kd1 {[%clk 0:01:50]}  Qxg2 {[%clk 0:02:08]} 15. Re1 {[%clk 0:01:49]}  Rf2 {[%clk 0:01:55]} 16. Bd2 {[%clk 0:01:41]}  Nd7 {[%clk 0:01:41]} 17. Kc2 {[%clk 0:01:36]}  Ne5 {[%clk 0:01:13]} 18. Rg1 {[%clk 0:01:31]}  Rxd2+ {[%clk 0:01:13]} 19. Qxd2 {[%clk 0:01:31]}  Qxd2+ {[%clk 0:01:14]} 20. Kxd2 {[%clk 0:01:31]}  Nf3+ {[%clk 0:01:14]} 21. Kc3 {[%clk 0:01:31]}  Nxg1 {[%clk 0:01:14]} 22. Rxg1 {[%clk 0:01:30]}  g6 {[%clk 0:01:13]} 23. Kd4 {[%clk 0:01:15]}  c6 {[%clk 0:01:03]} 24. Kxe4 {[%clk 0:01:09]}  Rc8 {[%clk 0:00:55]} 25. Nf4 {[%clk 0:00:59]}  cxd5+ {[%clk 0:00:44]} 26. cxd5 {[%clk 0:00:59]}  Rc2 {[%clk 0:00:44]} 27. h4 {[%clk 0:00:58]}  Kf7 {[%clk 0:00:38]} 28. h5 {[%clk 0:00:57]}  gxh5 {[%clk 0:00:30]} 29. Nxh5 {[%clk 0:00:48]}  Bxd5+ {[%clk 0:00:29]} 30. Kd3 {[%clk 0:00:44]}  Rxb2 {[%clk 0:00:26]} 31. Rg7+ {[%clk 0:00:42]}  Ke6 {[%clk 0:00:14]} 32. Nf4+ {[%clk 0:00:41]}  Kf6 {[%clk 0:00:14]} 33. Rxa7 {[%clk 0:00:41]}  Bf7 {[%clk 0:00:13]} 34. a4 {[%clk 0:00:38]}  h5 {[%clk 0:00:12]} 35. Ra8 {[%clk 0:00:31]}  h4 {[%clk 0:00:12]} 36. Rh8 {[%clk 0:00:31]}  Kg5 {[%clk 0:00:12]} 37. Rf8 {[%clk 0:00:28]}  Kf6 {[%clk 0:00:09]} 38. Rh8 {[%clk 0:00:23]}  Kg5 {[%clk 0:00:09]} 39. Rh7 {[%clk 0:00:20]}  Ba2 {[%clk 0:00:00]} 40. Rg7+ {[%clk 0:00:17]} 1-0


[Site "https://www.chess.com"]

[Event "Titled Tuesday Blitz July 4 Early 2023"]
[White "Wartiovaara, Oliver"]
[Black "Lana Rodriguez, David"]
[WhiteFideId "513024"]
[BlackFideId "2270803"]
[WhiteElo "2392"]
[BlackElo "2548"]
[Result "0-1"]
[Round "7"]
[TimeControl "180+2"]
[Date "2023.07.04"]
[WhiteClock "0:00:10"]
[BlackClock "0:01:53"]
[Board "108"]

1. d4 {[%clk 0:03:00]}  Nf6 {[%clk 0:02:59]} 2. Nf3 {[%clk 0:02:58]}  e6 {[%clk 0:02:59]} 3. Bf4 {[%clk 0:02:56]}  c5 {[%clk 0:02:59]} 4. e3 {[%clk 0:02:55]}  Qb6 {[%clk 0:03:00]} 5. Nc3 {[%clk 0:02:44]}  d5 {[%clk 0:02:56]} 6. Nb5 {[%clk 0:02:38]}  Na6 {[%clk 0:02:56]} 7. c4 {[%clk 0:02:35]}  cxd4 {[%clk 0:02:48]} 8. Qxd4 {[%clk 0:02:24]}  Bc5 {[%clk 0:02:42]} 9. Qe5 {[%clk 0:01:31]}  O-O {[%clk 0:02:35]} 10. Bd3 {[%clk 0:01:28]}  Bd7 {[%clk 0:02:30]} 11. Bg5 {[%clk 0:01:03]}  Bb4+ {[%clk 0:02:30]} 12. Ke2 {[%clk 0:01:03]}  Ne4 {[%clk 0:02:27]} 13. Bxe4 {[%clk 0:00:57]}  dxe4 {[%clk 0:02:28]} 14. Qxe4 {[%clk 0:00:57]}  Nc5 {[%clk 0:02:17]} 15. Qc2 {[%clk 0:00:23]}  Bxb5 {[%clk 0:02:17]} 16. a3 {[%clk 0:00:23]}  Ba4 {[%clk 0:02:10]} 17. Qb1 {[%clk 0:00:18]}  Bb3 {[%clk 0:02:07]} 18. axb4 {[%clk 0:00:17]}  Bxc4+ {[%clk 0:02:06]} 19. Ke1 {[%clk 0:00:17]}  Qxb4+ {[%clk 0:02:07]} 20. Nd2 {[%clk 0:00:17]}  Nd3+ {[%clk 0:02:06]} 21. Ke2 {[%clk 0:00:16]}  Ne5+ {[%clk 0:02:03]} 22. Ke1 {[%clk 0:00:15]}  Bd3 {[%clk 0:02:01]} 23. Qd1 {[%clk 0:00:14]}  Ba6 {[%clk 0:01:58]} 24. Qb3 {[%clk 0:00:13]}  Nd3+ {[%clk 0:01:55]} 25. Ke2 {[%clk 0:00:12]}  Nc5+ {[%clk 0:01:54]} 26. Rxa6 {[%clk 0:00:10]}  Nxb3 {[%clk 0:01:53]} 0-1


[Site "https://www.chess.com"]

[Event "Titled Tuesday Blitz July 4 Early 2023"]
[White "WindWhistler11"]
[Black "Kukreja Sankalp"]
[BlackFideId "45027676"]
[WhiteElo "2548"]
[BlackElo "2392"]
[Result "0-1"]
[Round "7"]
[TimeControl "180+2"]
[Date "2023.07.04"]
[WhiteClock "0:00:00"]
[BlackClock "0:02:04"]
[Board "109"]

1. Nf3 {[%clk 0:02:55]}  d5 {[%clk 0:02:58]} 2. c4 {[%clk 0:02:55]}  c6 {[%clk 0:02:54]} 3. g3 {[%clk 0:02:55]}  Nf6 {[%clk 0:02:54]} 4. Bg2 {[%clk 0:02:55]}  dxc4 {[%clk 0:02:55]} 5. Na3 {[%clk 0:02:44]}  b5 {[%clk 0:02:48]} 6. b3 {[%clk 0:02:40]}  cxb3 {[%clk 0:02:46]} 7. Ne5 {[%clk 0:02:39]}  Qd4 {[%clk 0:02:33]} 8. Nxc6 {[%clk 0:01:52]}  Qxa1 {[%clk 0:02:32]} 9. Nxb5 {[%clk 0:01:25]}  b2 {[%clk 0:02:17]} 10. Nc7+ {[%clk 0:01:19]}  Kd7 {[%clk 0:02:14]} 11. Ne5+ {[%clk 0:00:07]}  Kxc7 {[%clk 0:02:11]} 12. Qc2+ {[%clk 0:00:05]}  Kd8 {[%clk 0:02:11]} 13. Nxf7+ {[%clk 0:00:04]}  Ke8 {[%clk 0:02:11]} 14. Qxc8+ {[%clk 0:00:04]}  Kxf7 {[%clk 0:02:11]} 15. Qc4+ {[%clk 0:00:02]}  e6 {[%clk 0:02:11]} 16. O-O {[%clk 0:00:02]}  bxc1=Q {[%clk 0:02:04]} 17. Rxc1 {[%clk 0:00:00]}  Qe5 {[%clk 0:02:04]} 0-1


[Site "https://www.chess.com"]

[Event "Titled Tuesday Blitz July 4 Early 2023"]
[White "Bruedigam, Martin"]
[Black "Topalov, Aleksandar"]
[WhiteFideId "24608033"]
[BlackFideId "925659"]
[WhiteElo "2540"]
[BlackElo "2389"]
[Result "1-0"]
[Round "7"]
[TimeControl "180+2"]
[Date "2023.07.04"]
[WhiteClock "0:01:12"]
[BlackClock "0:00:01"]
[Board "110"]

1. c4 {[%clk 0:03:00]}  Nf6 {[%clk 0:02:56]} 2. g3 {[%clk 0:03:01]}  g6 {[%clk 0:02:52]} 3. Bg2 {[%clk 0:03:00]}  Bg7 {[%clk 0:02:51]} 4. Nc3 {[%clk 0:02:57]}  O-O {[%clk 0:02:51]} 5. Nf3 {[%clk 0:02:58]}  c5 {[%clk 0:02:51]} 6. O-O {[%clk 0:02:58]}  Nc6 {[%clk 0:02:50]} 7. d3 {[%clk 0:02:56]}  a6 {[%clk 0:02:49]} 8. a3 {[%clk 0:02:55]}  Rb8 {[%clk 0:02:50]} 9. Rb1 {[%clk 0:02:53]}  b5 {[%clk 0:02:50]} 10. cxb5 {[%clk 0:02:53]}  axb5 {[%clk 0:02:50]} 11. b4 {[%clk 0:02:53]}  cxb4 {[%clk 0:02:50]} 12. axb4 {[%clk 0:02:54]}  d5 {[%clk 0:02:48]} 13. Bf4 {[%clk 0:02:49]}  Rb6 {[%clk 0:02:45]} 14. Ne5 {[%clk 0:02:35]}  Nxe5 {[%clk 0:02:39]} 15. Bxe5 {[%clk 0:02:36]}  d4 {[%clk 0:02:26]} 16. Bxf6 {[%clk 0:02:35]}  Bxf6 {[%clk 0:02:24]} 17. Ne4 {[%clk 0:02:34]}  Be5 {[%clk 0:02:13]} 18. Nc5 {[%clk 0:02:31]}  Be6 {[%clk 0:01:41]} 19. Ra1 {[%clk 0:02:31]}  Bd5 {[%clk 0:01:39]} 20. Bxd5 {[%clk 0:02:25]}  Qxd5 {[%clk 0:01:39]} 21. Qd2 {[%clk 0:02:13]}  Rd8 {[%clk 0:01:29]} 22. Rfc1 {[%clk 0:02:07]}  Bd6 {[%clk 0:01:28]} 23. Ne4 {[%clk 0:02:06]}  Rc6 {[%clk 0:01:15]} 24. Rxc6 {[%clk 0:02:03]}  Qxc6 {[%clk 0:01:14]} 25. Rc1 {[%clk 0:02:03]}  Qd5 {[%clk 0:01:09]} 26. Nxd6 {[%clk 0:02:01]}  Qxd6 {[%clk 0:01:00]} 27. Rc5 {[%clk 0:02:00]}  Rb8 {[%clk 0:01:00]} 28. h4 {[%clk 0:01:50]}  Kg7 {[%clk 0:00:49]} 29. Kg2 {[%clk 0:01:38]}  h6 {[%clk 0:00:46]} 30. Qf4 {[%clk 0:01:33]}  Qd8 {[%clk 0:00:16]} 31. Qe5+ {[%clk 0:01:27]}  f6 {[%clk 0:00:17]} 32. Qe6 {[%clk 0:01:26]}  Rb6 {[%clk 0:00:14]} 33. Qe4 {[%clk 0:01:23]}  e5 {[%clk 0:00:09]} 34. h5 {[%clk 0:01:21]}  gxh5 {[%clk 0:00:08]} 35. Qf5 {[%clk 0:01:18]}  Qe7 {[%clk 0:00:06]} 36. Qxh5 {[%clk 0:01:15]}  Rb7 {[%clk 0:00:05]} 37. Qg4+ {[%clk 0:01:12]}  Kh7 {[%clk 0:00:04]} 38. Rc8 {[%clk 0:01:11]}  Qg7 {[%clk 0:00:04]} 39. Qf5+ {[%clk 0:01:11]}  Qg6 {[%clk 0:00:03]} 40. Rh8+ {[%clk 0:01:12]}  Kg7 {[%clk 0:00:02]} 41. Rg8+ {[%clk 0:01:12]}  Kxg8 {[%clk 0:00:01]} 42. Qxg6+ {[%clk 0:01:12]} 1-0


[Site "https://www.chess.com"]

[Event "Titled Tuesday Blitz July 4 Early 2023"]
[White "Rosh Jain"]
[Black "Yelisieiev, Yevhenii"]
[WhiteFideId "25789465"]
[BlackFideId "14139642"]
[WhiteElo "2357"]
[BlackElo "2531"]
[Result "1-0"]
[Round "7"]
[TimeControl "180+2"]
[Date "2023.07.04"]
[WhiteClock "0:00:08"]
[BlackClock "0:00:00"]
[Board "116"]

1. e4 {[%clk 0:02:56]}  d6 {[%clk 0:03:00]} 2. d4 {[%clk 0:02:55]}  Nf6 {[%clk 0:03:01]} 3. Bd3 {[%clk 0:02:53]}  e5 {[%clk 0:03:01]} 4. c3 {[%clk 0:02:53]}  g6 {[%clk 0:03:01]} 5. Nf3 {[%clk 0:02:53]}  Bd7 {[%clk 0:03:00]} 6. dxe5 {[%clk 0:02:53]}  dxe5 {[%clk 0:03:00]} 7. Nxe5 {[%clk 0:02:53]}  Bg7 {[%clk 0:03:00]} 8. O-O {[%clk 0:02:51]}  O-O {[%clk 0:02:59]} 9. Nxd7 {[%clk 0:02:51]}  Nbxd7 {[%clk 0:02:59]} 10. Be3 {[%clk 0:02:48]}  Ne5 {[%clk 0:02:54]} 11. Bc2 {[%clk 0:02:48]}  Nc4 {[%clk 0:02:53]} 12. Qc1 {[%clk 0:02:44]}  Nxe3 {[%clk 0:02:51]} 13. Qxe3 {[%clk 0:02:44]}  Ng4 {[%clk 0:02:51]} 14. Qe2 {[%clk 0:02:43]}  Qh4 {[%clk 0:02:49]} 15. h3 {[%clk 0:02:41]}  Ne5 {[%clk 0:02:48]} 16. Nd2 {[%clk 0:02:40]}  Rad8 {[%clk 0:02:45]} 17. Rad1 {[%clk 0:02:37]}  Qf4 {[%clk 0:02:33]} 18. Nc4 {[%clk 0:02:27]}  Nxc4 {[%clk 0:02:26]} 19. Qxc4 {[%clk 0:02:28]}  Be5 {[%clk 0:02:26]} 20. g3 {[%clk 0:02:27]}  Qf3 {[%clk 0:02:24]} 21. Rd5 {[%clk 0:01:41]}  Rfe8 {[%clk 0:01:27]} 22. Bd1 {[%clk 0:01:37]}  Qf6 {[%clk 0:01:23]} 23. Bb3 {[%clk 0:01:37]}  c6 {[%clk 0:01:20]} 24. Rdd1 {[%clk 0:01:37]}  Qf3 {[%clk 0:01:16]} 25. h4 {[%clk 0:01:25]}  h5 {[%clk 0:01:07]} 26. a4 {[%clk 0:01:17]}  g5 {[%clk 0:01:04]} 27. hxg5 {[%clk 0:01:11]}  Kg7 {[%clk 0:01:01]} 28. g6 {[%clk 0:01:07]}  Kxg6 {[%clk 0:00:48]} 29. Qc5 {[%clk 0:01:02]}  f6 {[%clk 0:00:15]} 30. Qc4 {[%clk 0:00:55]}  Kh6 {[%clk 0:00:13]} 31. Qf7 {[%clk 0:00:24]}  h4 {[%clk 0:00:13]} 32. Rd7 {[%clk 0:00:24]}  Rxd7 {[%clk 0:00:07]} 33. Qxd7 {[%clk 0:00:20]}  Rh8 {[%clk 0:00:04]} 34. Bd1 {[%clk 0:00:17]}  Qxe4 {[%clk 0:00:04]} 35. Qh3 {[%clk 0:00:13]}  Kg7 {[%clk 0:00:02]} 36. Qg4+ {[%clk 0:00:13]}  Qxg4 {[%clk 0:00:03]} 37. Bxg4 {[%clk 0:00:14]}  hxg3 {[%clk 0:00:03]} 38. fxg3 {[%clk 0:00:14]}  Bxg3 {[%clk 0:00:04]} 39. Rd1 {[%clk 0:00:14]}  Rh2 {[%clk 0:00:02]} 40. Rd7+ {[%clk 0:00:14]}  Kg6 {[%clk 0:00:02]} 41. Rxb7 {[%clk 0:00:13]}  Bf4 {[%clk 0:00:00]} 42. Rb4 {[%clk 0:00:08]} 1-0


[Site "https://www.chess.com"]

[Event "Titled Tuesday Blitz July 4 Early 2023"]
[White "Castillo Sevilla, Ian Eiffel"]
[Black "Kuzmin, Roman"]
[WhiteFideId "6104207"]
[BlackFideId "44134932"]
[WhiteElo "2328"]
[BlackElo "2529"]
[Result "0-1"]
[Round "7"]
[TimeControl "180+2"]
[Date "2023.07.04"]
[WhiteClock "0:00:00"]
[BlackClock "0:00:35"]
[Board "118"]

1. d4 {[%clk 0:03:00]}  Nf6 {[%clk 0:02:59]} 2. Bf4 {[%clk 0:03:01]}  e6 {[%clk 0:03:00]} 3. e3 {[%clk 0:03:01]}  d5 {[%clk 0:03:00]} 4. Nf3 {[%clk 0:02:59]}  c5 {[%clk 0:03:00]} 5. c3 {[%clk 0:02:53]}  Nc6 {[%clk 0:02:59]} 6. Nbd2 {[%clk 0:02:53]}  Bd6 {[%clk 0:02:59]} 7. Ne5 {[%clk 0:02:49]}  Bxe5 {[%clk 0:02:57]} 8. dxe5 {[%clk 0:02:47]}  Nd7 {[%clk 0:02:58]} 9. Qg4 {[%clk 0:02:43]}  g6 {[%clk 0:02:46]} 10. Nf3 {[%clk 0:02:40]}  h5 {[%clk 0:02:44]} 11. Qg3 {[%clk 0:02:35]}  Qb6 {[%clk 0:02:35]} 12. O-O-O {[%clk 0:02:31]}  Qa5 {[%clk 0:02:36]} 13. Kb1 {[%clk 0:02:30]}  b5 {[%clk 0:02:36]} 14. e4 {[%clk 0:02:21]}  d4 {[%clk 0:02:02]} 15. cxd4 {[%clk 0:02:19]}  cxd4 {[%clk 0:02:00]} 16. Nxd4 {[%clk 0:01:50]}  Nxd4 {[%clk 0:01:59]} 17. Rxd4 {[%clk 0:01:50]}  Qe1+ {[%clk 0:01:50]} 18. Bc1 {[%clk 0:01:50]}  Bb7 {[%clk 0:01:44]} 19. Qe3 {[%clk 0:01:48]}  Qxe3 {[%clk 0:01:38]} 20. Bxe3 {[%clk 0:01:49]}  a6 {[%clk 0:01:37]} 21. f4 {[%clk 0:01:44]}  Nc5 {[%clk 0:01:36]} 22. Be2 {[%clk 0:01:00]}  Bxe4+ {[%clk 0:01:34]} 23. Ka1 {[%clk 0:01:00]}  Bxg2 {[%clk 0:01:26]} 24. Rc1 {[%clk 0:01:00]}  Nd7 {[%clk 0:01:26]} 25. Rc7 {[%clk 0:00:58]}  Bd5 {[%clk 0:01:26]} 26. Bf3 {[%clk 0:00:41]}  Bxf3 {[%clk 0:01:25]} 27. Rdxd7 {[%clk 0:00:40]}  O-O {[%clk 0:01:25]} 28. b3 {[%clk 0:00:29]}  Rac8 {[%clk 0:01:22]} 29. Rxf7 {[%clk 0:00:25]}  Rxf7 {[%clk 0:01:13]} 30. Rxc8+ {[%clk 0:00:24]}  Kg7 {[%clk 0:01:14]} 31. Kb2 {[%clk 0:00:21]}  Rd7 {[%clk 0:01:13]} 32. a4 {[%clk 0:00:11]}  bxa4 {[%clk 0:00:54]} 33. bxa4 {[%clk 0:00:12]}  Rb7+ {[%clk 0:00:52]} 34. Ka3 {[%clk 0:00:10]}  Bd5 {[%clk 0:00:52]} 35. Rc3 {[%clk 0:00:07]}  Rb1 {[%clk 0:00:53]} 36. Bc1 {[%clk 0:00:06]}  Kf7 {[%clk 0:00:43]} 37. Rc7+ {[%clk 0:00:05]}  Ke8 {[%clk 0:00:41]} 38. Bb2 {[%clk 0:00:05]}  Rf1 {[%clk 0:00:40]} 39. Rc2 {[%clk 0:00:04]}  Rxf4 {[%clk 0:00:37]} 40. Bc3 {[%clk 0:00:00]}  g5 {[%clk 0:00:35]} 0-1


[Site "https://www.chess.com"]

[Event "Titled Tuesday Blitz July 4 Early 2023"]
[White "Samarth J Rao"]
[Black "Deng, Henry"]
[WhiteFideId "46652370"]
[BlackFideId "30965454"]
[WhiteElo "2262"]
[BlackElo "2515"]
[Result "0-1"]
[Round "7"]
[TimeControl "180+2"]
[Date "2023.07.04"]
[WhiteClock "0:00:57"]
[BlackClock "0:00:44"]
[Board "123"]

1. Nf3 {[%clk 0:03:00]}  d5 {[%clk 0:02:59]} 2. c4 {[%clk 0:03:01]}  c6 {[%clk 0:02:59]} 3. e3 {[%clk 0:03:01]}  Nf6 {[%clk 0:02:59]} 4. b3 {[%clk 0:03:02]}  Bg4 {[%clk 0:02:58]} 5. Bb2 {[%clk 0:03:02]}  Nbd7 {[%clk 0:02:57]} 6. Be2 {[%clk 0:03:01]}  e6 {[%clk 0:02:55]} 7. O-O {[%clk 0:02:57]}  Be7 {[%clk 0:02:51]} 8. Nc3 {[%clk 0:02:56]}  O-O {[%clk 0:02:50]} 9. Rc1 {[%clk 0:02:56]}  Rc8 {[%clk 0:02:47]} 10. cxd5 {[%clk 0:02:55]}  exd5 {[%clk 0:02:46]} 11. d4 {[%clk 0:02:54]}  Bd6 {[%clk 0:02:43]} 12. h3 {[%clk 0:02:53]}  Bh5 {[%clk 0:02:43]} 13. Na4 {[%clk 0:02:54]}  Ne4 {[%clk 0:02:41]} 14. Ne5 {[%clk 0:02:47]}  Bxe2 {[%clk 0:02:39]} 15. Qxe2 {[%clk 0:02:47]}  Qe7 {[%clk 0:02:34]} 16. Nxd7 {[%clk 0:02:45]}  Qxd7 {[%clk 0:02:34]} 17. Nc3 {[%clk 0:02:41]}  Nxc3 {[%clk 0:02:28]} 18. Rxc3 {[%clk 0:02:40]}  f5 {[%clk 0:02:28]} 19. Re1 {[%clk 0:02:26]}  Rce8 {[%clk 0:02:26]} 20. Qd1 {[%clk 0:02:24]}  f4 {[%clk 0:02:17]} 21. exf4 {[%clk 0:02:24]}  Rxe1+ {[%clk 0:02:15]} 22. Qxe1 {[%clk 0:02:24]}  Rxf4 {[%clk 0:02:15]} 23. Re3 {[%clk 0:02:21]}  Rf8 {[%clk 0:02:13]} 24. Re6 {[%clk 0:02:16]}  Kf7 {[%clk 0:02:10]} 25. Re3 {[%clk 0:02:13]}  Re8 {[%clk 0:02:08]} 26. Bc3 {[%clk 0:02:10]}  Rxe3 {[%clk 0:02:04]} 27. Qxe3 {[%clk 0:02:10]}  Qf5 {[%clk 0:02:03]} 28. Qe1 {[%clk 0:01:55]}  Qc2 {[%clk 0:01:58]} 29. Qd2 {[%clk 0:01:54]}  Qb1+ {[%clk 0:01:57]} 30. Qe1 {[%clk 0:01:50]}  Qxa2 {[%clk 0:01:57]} 31. Qd1 {[%clk 0:01:48]}  Be7 {[%clk 0:01:44]} 32. g3 {[%clk 0:01:45]}  Qa3 {[%clk 0:01:43]} 33. h4 {[%clk 0:01:41]}  Qd6 {[%clk 0:01:27]} 34. Qg4 {[%clk 0:01:34]}  Qe6 {[%clk 0:01:24]} 35. Qf4+ {[%clk 0:01:34]}  Bf6 {[%clk 0:01:13]} 36. Qb8 {[%clk 0:01:31]}  c5 {[%clk 0:00:59]} 37. Qxb7+ {[%clk 0:01:27]}  Kg6 {[%clk 0:00:57]} 38. Qxa7 {[%clk 0:01:23]}  cxd4 {[%clk 0:00:53]} 39. Bd2 {[%clk 0:01:14]}  Qg4 {[%clk 0:00:47]} 40. Qa5 {[%clk 0:01:07]}  Qd1+ {[%clk 0:00:45]} 41. Kg2 {[%clk 0:01:07]}  Qxb3 {[%clk 0:00:46]} 42. Kh3 {[%clk 0:00:59]}  Qf3 {[%clk 0:00:44]} 43. Be1 {[%clk 0:00:57]}  Qh1+ {[%clk 0:00:44]} 44. Kg4 {[%clk 0:00:57]}  h5+ {[%clk 0:00:43]} 45. Kf4 {[%clk 0:00:57]}  Qe4# {[%clk 0:00:44]} 0-1


[Site "https://www.chess.com"]

[Event "Titled Tuesday Blitz July 4 Early 2023"]
[White "Korkmaz, Necmettin"]
[Black "Sanchez, Robert"]
[WhiteFideId "6303285"]
[BlackFideId "2034360"]
[WhiteElo "2512"]
[BlackElo "2169"]
[Result "1-0"]
[Round "7"]
[TimeControl "180+2"]
[Date "2023.07.04"]
[WhiteClock "0:00:33"]
[BlackClock "0:00:22"]
[Board "125"]

1. e4 {[%clk 0:02:25]}  d5 {[%clk 0:02:53]} 2. exd5 {[%clk 0:02:24]}  Qxd5 {[%clk 0:02:54]} 3. Nc3 {[%clk 0:02:23]}  Qe6+ {[%clk 0:02:55]} 4. Be2 {[%clk 0:02:22]}  Qg6 {[%clk 0:02:55]} 5. Bf3 {[%clk 0:02:20]}  Nc6 {[%clk 0:02:55]} 6. Nge2 {[%clk 0:02:19]}  e5 {[%clk 0:02:55]} 7. O-O {[%clk 0:02:18]}  Bd7 {[%clk 0:02:55]} 8. d3 {[%clk 0:02:18]}  O-O-O {[%clk 0:02:55]} 9. Be3 {[%clk 0:02:15]}  f5 {[%clk 0:02:56]} 10. g3 {[%clk 0:02:11]}  h5 {[%clk 0:02:53]} 11. d4 {[%clk 0:02:04]}  f4 {[%clk 0:02:39]} 12. d5 {[%clk 0:01:53]}  fxe3 {[%clk 0:02:38]} 13. fxe3 {[%clk 0:01:42]}  Nce7 {[%clk 0:02:25]} 14. d6 {[%clk 0:01:41]}  Qxd6 {[%clk 0:02:24]} 15. Qe1 {[%clk 0:01:40]}  Qb6 {[%clk 0:02:20]} 16. Qf2 {[%clk 0:01:39]}  Nf5 {[%clk 0:02:10]} 17. Nd5 {[%clk 0:01:38]}  Qd6 {[%clk 0:02:02]} 18. Be4 {[%clk 0:01:37]}  Nfh6 {[%clk 0:01:53]} 19. Rad1 {[%clk 0:01:36]}  Ng4 {[%clk 0:01:40]} 20. Qf3 {[%clk 0:01:32]}  Kb8 {[%clk 0:01:21]} 21. Ndc3 {[%clk 0:01:27]}  Qe7 {[%clk 0:01:20]} 22. Bxb7 {[%clk 0:01:25]}  N8f6 {[%clk 0:01:07]} 23. Ba6 {[%clk 0:01:25]}  Bc8 {[%clk 0:01:05]} 24. Rxd8 {[%clk 0:01:18]}  Qxd8 {[%clk 0:01:05]} 25. Rd1 {[%clk 0:01:16]}  Bd6 {[%clk 0:01:05]} 26. Qc6 {[%clk 0:01:15]}  Bxa6 {[%clk 0:01:05]} 27. Qxa6 {[%clk 0:01:16]}  Qc8 {[%clk 0:01:05]} 28. Qd3 {[%clk 0:01:11]}  h4 {[%clk 0:01:01]} 29. h3 {[%clk 0:01:09]}  hxg3 {[%clk 0:00:55]} 30. hxg4 {[%clk 0:01:06]}  Qb7 {[%clk 0:00:55]} 31. e4 {[%clk 0:01:04]}  Bc5+ {[%clk 0:00:55]} 32. Kg2 {[%clk 0:01:03]}  Nxg4 {[%clk 0:00:52]} 33. Kxg3 {[%clk 0:01:00]}  Qc6 {[%clk 0:00:41]} 34. Qb5+ {[%clk 0:00:57]}  Qxb5 {[%clk 0:00:40]} 35. Nxb5 {[%clk 0:00:58]}  Ne3 {[%clk 0:00:38]} 36. Rd7 {[%clk 0:00:57]}  Nxc2 {[%clk 0:00:36]} 37. Nxc7 {[%clk 0:00:56]}  Nd4 {[%clk 0:00:29]} 38. Na6+ {[%clk 0:00:54]}  Kc8 {[%clk 0:00:29]} 39. Rc7+ {[%clk 0:00:54]}  Kd8 {[%clk 0:00:29]} 40. Rxc5 {[%clk 0:00:44]}  Nxe2+ {[%clk 0:00:29]} 41. Kf3 {[%clk 0:00:44]}  Nd4+ {[%clk 0:00:29]} 42. Kg4 {[%clk 0:00:43]}  Re8 {[%clk 0:00:27]} 43. Nb4 {[%clk 0:00:35]}  Kd7 {[%clk 0:00:24]} 44. Ra5 {[%clk 0:00:34]}  Nc6 {[%clk 0:00:22]} 45. Nxc6 {[%clk 0:00:33]}  Kxc6 {[%clk 0:00:22]} 46. Rxa7 {[%clk 0:00:33]}  Rb8 {[%clk 0:00:23]} 47. b3 {[%clk 0:00:32]}  Rb4 {[%clk 0:00:22]} 48. Kf5 {[%clk 0:00:33]} 1-0


[Site "https://www.chess.com"]

[Event "Titled Tuesday Blitz July 4 Early 2023"]
[White "Floresvillar Gonzalez, Luis Migu"]
[Black "Fantastic_Power"]
[WhiteFideId "5100542"]
[WhiteElo "2103"]
[BlackElo "2505"]
[Result "0-1"]
[Round "7"]
[TimeControl "180+2"]
[Date "2023.07.04"]
[WhiteClock "0:00:32"]
[BlackClock "0:00:11"]
[Board "127"]

1. d4 {[%clk 0:03:00]}  Nf6 {[%clk 0:02:59]} 2. c3 {[%clk 0:03:00]}  d5 {[%clk 0:02:55]} 3. Bg5 {[%clk 0:02:59]}  Ne4 {[%clk 0:02:53]} 4. h4 {[%clk 0:03:00]}  c5 {[%clk 0:02:51]} 5. e3 {[%clk 0:02:57]}  Qb6 {[%clk 0:02:49]} 6. Qb3 {[%clk 0:02:55]}  c4 {[%clk 0:02:33]} 7. Qxb6 {[%clk 0:02:54]}  axb6 {[%clk 0:02:34]} 8. Nd2 {[%clk 0:02:52]}  Bf5 {[%clk 0:02:29]} 9. Nxe4 {[%clk 0:02:50]}  Bxe4 {[%clk 0:02:30]} 10. f3 {[%clk 0:02:44]}  Bf5 {[%clk 0:02:24]} 11. g4 {[%clk 0:02:43]}  Bd7 {[%clk 0:02:24]} 12. Ne2 {[%clk 0:02:26]}  Nc6 {[%clk 0:02:09]} 13. h5 {[%clk 0:02:20]}  f6 {[%clk 0:01:57]} 14. Bh4 {[%clk 0:02:13]}  e5 {[%clk 0:01:54]} 15. a3 {[%clk 0:02:02]}  Bd6 {[%clk 0:01:48]} 16. Ng3 {[%clk 0:01:49]}  O-O {[%clk 0:01:38]} 17. Kd2 {[%clk 0:01:47]}  exd4 {[%clk 0:01:33]} 18. exd4 {[%clk 0:01:44]}  Na5 {[%clk 0:01:28]} 19. Re1 {[%clk 0:01:34]}  Bf4+ {[%clk 0:01:22]} 20. Kc2 {[%clk 0:01:28]}  Rfe8 {[%clk 0:00:45]} 21. Bh3 {[%clk 0:00:57]}  Nb3 {[%clk 0:00:32]} 22. Nf5 {[%clk 0:00:53]}  Nd2 {[%clk 0:00:25]} 23. Bg2 {[%clk 0:00:49]}  Ba4+ {[%clk 0:00:23]} 24. b3 {[%clk 0:00:36]}  cxb3+ {[%clk 0:00:22]} 25. Kb2 {[%clk 0:00:37]}  Nc4+ {[%clk 0:00:22]} 26. Kb1 {[%clk 0:00:36]}  Nxa3+ {[%clk 0:00:19]} 27. Kb2 {[%clk 0:00:36]}  Nc4+ {[%clk 0:00:19]} 28. Kb1 {[%clk 0:00:36]}  Bd2 {[%clk 0:00:17]} 29. Rxe8+ {[%clk 0:00:36]}  Rxe8 {[%clk 0:00:12]} 30. Rd1 {[%clk 0:00:32]}  Bxc3 {[%clk 0:00:11]} 31. Rc1 {[%clk 0:00:32]}  Na3# {[%clk 0:00:11]} 0-1


[Site "https://www.chess.com"]